[Event "22nd ETCC Women 2019"]
[Site "Batumi"]
[Date "2019.10.27"]
[Round "4.18"]
[White "Bejatovic, Bojana"]
[Black "Olsarova, Karolina"]
[Result "0-1"]
[ECO "C50"]
[WhiteElo "2004"]
[BlackElo "2294"]
[Annotator "NA"]
[PlyCount "52"]
[EventDate "2019.10.24"]
[EventType "team-tourn"]
[EventCountry "GEO"]
[SourceTitle "playchess.com"]
[Source "ChessBase"]
[SourceQuality "1"]
[WhiteTeam "Macedonia"]
[BlackTeam "Czech Republic"]
[WhiteTeamCountry "MKD"]
[BlackTeamCountry "CZE"]
[TimeControl "40/5400+30:1800+30"]

1. e4 {[%emt 0:00:00]} e5 {[%emt 0:00:00]} 2. Nf3 {[%emt 0:00:00]} Nc6 {[%emt 0:00:00]} 3. Bc4 {[%emt 0:00:00]} Bc5 {[%emt 0:00:00]} 4. d3 {[%emt 0:00:06]} Nf6 {[%emt 0:00:32]} 5. Nc3 {[%emt 0:00:22]} O-O {[%emt 0:11:51]} 6. Bg5 {[%emt 0:00:47]} Be7 {[%emt 0:04:14]} 7. a4 {[%emt 0:07:55]} d6 {[%emt 0:01:23]} 8. h3 {[%emt 0:01:35]} Be6 {[%emt 0:01:29]} 9. O-O {[%emt 0:06:22]} Nxe4 {[%emt 0:20:06]} 10. Nxe4 {[%emt 0:00:48]} d5 {[%emt 0:00:06]} 11. Bxe7 {[%emt 0:01:07]} Qxe7 {[%emt 0:00:20]} 12. Bb5 {[%emt 0:00:53]} dxe4 {[%emt 0:00:07]} 13. dxe4 {[%emt 0:00:01]} Rfd8 {[%emt 0:01:56]} 14. Qe2 {[%emt 0:05:49]} Qc5 {[%emt 0:06:53]} 15. c3 {[%emt 0:13:47]} f6 {[%emt 0:11:12]} 16. Nd2 {[%emt 0:07:20]} Kh8 {[%emt 0:03:40]} 17. Rac1 {[%emt 0:08:16]} a6 {[%emt 0:03:21]} 18. b4 {[%emt 0:03:27]} Qd6 {[%emt 0:10:04]} 19. Nc4 {[%emt 0:08:50]} Qd7 {[%emt 0:05:43]} 20. Bxc6 {[%emt 0:00:23]} Qxc6 {[%emt 0:00:02]} 21. Na5 {[%emt 0:02:05]} Qb6 {[%emt 0:00:02]} 22. Rfd1 {[%emt 0:03:19]} c5 {[%emt 0:03:26]} 23. Nc4 {[%emt 0:06:31]} Qc6 {[%emt 0:01:18]} 24. a5 {[%emt 0:02:09]} Qb5 {[%emt 0:02:06]} 25. Rd5 {[%emt 0:05:14]} Rxd5 {[%emt 0:01:05]} 26. exd5 {[%emt 0:00:46]} Bxd5 {[%emt 0:00:06]} 0-1

[Event "22nd ETCC Women 2019"]
[Site "Batumi"]
[Date "2019.10.27"]
[Round "4.19"]
[White "Mammadova, Gulnar"]
[Black "Cosma, Elena-Luminita"]
[Result "1/2-1/2"]
[ECO "C13"]
[WhiteElo "2369"]
[BlackElo "2313"]
[Annotator "NA"]
[PlyCount "146"]
[EventDate "2019.10.24"]
[EventType "team-tourn"]
[EventCountry "GEO"]
[SourceTitle "playchess.com"]
[Source "ChessBase"]
[SourceQuality "1"]
[WhiteTeam "Azerbaijan"]
[BlackTeam "Romania"]
[WhiteTeamCountry "AZE"]
[BlackTeamCountry "ROU"]
[TimeControl "40/5400+30:1800+30"]

1. e4 {[%emt 0:00:00]} e6 {[%emt 0:00:00]} 2. d4 {[%emt 0:00:00]} d5 {[%emt 0:00:00]} 3. Nc3 {[%emt 0:00:00]} Nf6 {[%emt 0:00:00]} 4. Bg5 {[%emt 0:00:00]} Be7 {[%emt 0:00:00]} 5. e5 {[%emt 0:00:05]} Nfd7 {[%emt 0:00:05]} 6. h4 {[%emt 0:00:18]} Nc6 {[%emt 0:00:09]} 7. Qd2 {[%emt 0:01:28]} Nb6 {[%emt 0:02:22]} 8. f4 {[%emt 0:05:24]} Bd7 {[%emt 0:08:57]} 9. h5 {[%emt 0:07:14]} h6 {[%emt 0:01:44]} 10. Bxe7 {[%emt 0:02:20]} Qxe7 {[%emt 0:00:04]} 11. Nf3 {[%emt 0:01:58]} O-O-O {[%emt 0:00:07]} 12. a4 {[%emt 0:07:06]} Nc4 {[%emt 0:17:48]} 13. Bxc4 {[%emt 0:04:02]} dxc4 {[%emt 0:02:04]} 14. Nd1 {[%emt 0:14:39]} Nb4 {[%emt 0:10:32]} 15. Ne3 {[%emt 0:01:59]} f6 {[%emt 0:10:36]} 16. Nxc4 {[%emt 0:05:14]} Bc6 {[%emt 0:04:50]} 17. c3 {[%emt 0:08:08]} Bd5 {[%emt 0:08:11]} 18. Ne3 {[%emt 0:02:05]} Bxf3 {[%emt 0:02:51]} 19. gxf3 {[%emt 0:01:17]} Nd5 {[%emt 0:05:08]} 20. Nxd5 {[%emt 0:01:44]} Rxd5 {[%emt 0:00:06]} 21. b4 {[%emt 0:07:12]} Rf8 {[%emt 0:02:02]} 22. Qe3 {[%emt 0:04:19]} fxe5 {[%emt 0:02:40]} 23. fxe5 {[%emt 0:00:29]} Rf5 {[%emt 0:00:06]} 24. Ke2 {[%emt 0:03:16]} Qf7 {[%emt 0:01:47]} 25. Rag1 {[%emt 0:04:50]} Rd7 {[%emt 0:00:56]} 26. Qe4 {[%emt 0:10:26]} Rxh5 27. a5 {[%emt 0:00:51]} Rxh1 {[%emt 0:13:43]} 28. Rxh1 {[%emt 0:00:01]} Rd8 {[%emt 0:01:48]} 29. a6 {[%emt 0:02:28]} c6 {[%emt 0:00:07]} 30. Rb1 {[%emt 0:02:25]} Qd7 {[%emt 0:02:40]} 31. axb7+ {[%emt 0:00:28]} Kb8 {[%emt 0:00:27]} 32. Ke3 {[%emt 0:01:25]} Rf8 {[%emt 0:02:26]} 33. c4 {[%emt 0:01:39]} a6 {[%emt 0:00:20]} 34. Qd3 {[%emt 0:01:20]} Qxb7 {[%emt 0:00:45]} 35. Ke2 {[%emt 0:00:23]} Rf4 {[%emt 0:00:26]} 36. b5 {[%emt 0:00:30]} cxb5 {[%emt 0:00:08]} 37. cxb5 {[%emt 0:00:11]} a5 {[%emt 0:00:13]} 38. b6 {[%emt 0:00:41]} Qd5 {[%emt 0:00:44]} 39. Qc3 {[%emt 0:00:38]} Rf7 {[%emt 0:00:29]} 40. Rc1 {[%emt 0:00:00]} Qb5+ {[%emt 0:00:00]} 41. Ke3 {[%emt 0:05:21]} Qxb6 {[%emt 0:02:06]} 42. Ra1 {[%emt 0:06:40]} Qb7 {[%emt 0:10:02]} 43. Ke2 {[%emt 0:04:08]} Qb4 {[%emt 0:05:13]} 44. Qa3 {[%emt 0:09:01]} Qxa3 {[%emt 0:11:24]} 45. Rxa3 {[%emt 0:00:01]} Ra7 {[%emt 0:00:07]} 46. Kd3 {[%emt 0:00:04]} Kc7 {[%emt 0:00:39]} 47. d5 {[%emt 0:00:52]} exd5 {[%emt 0:00:11]} 48. Kd4 {[%emt 0:00:02]} a4 {[%emt 0:01:09]} 49. Kxd5 {[%emt 0:00:17]} Kd7 {[%emt 0:00:58]} 50. f4 {[%emt 0:00:04]} g6 {[%emt 0:01:21]} 51. Ke4 {[%emt 0:01:09]} Ke6 {[%emt 0:02:17]} 52. Rg3 {[%emt 0:01:10]} a3 {[%emt 0:00:57]} 53. Rxg6+ {[%emt 0:00:20]} Kf7 {[%emt 0:00:05]} 54. Rg1 {[%emt 0:03:56]} a2 {[%emt 0:00:05]} 55. Ra1 {[%emt 0:00:03]} Ra4+ {[%emt 0:00:40]} 56. Kf5 {[%emt 0:01:05]} Ra6 {[%emt 0:00:12]} 57. Ke4 {[%emt 0:00:35]} Ke6 {[%emt 0:01:43]} 58. f5+ {[%emt 0:00:06]} Kf7 {[%emt 0:00:05]} 59. Kf4 {[%emt 0:01:39]} Ra4+ {[%emt 0:00:20]} 60. Kf3 {[%emt 0:00:21]} h5 {[%emt 0:00:09]} 61. Kg3 {[%emt 0:00:15]} h4+ {[%emt 0:00:08]} 62. Kh3 {[%emt 0:00:08]} Ke7 {[%emt 0:00:07]} 63. Kh2 {[%emt 0:00:15]} Ra3 {[%emt 0:00:06]} 64. Kg2 {[%emt 0:00:04]} Kf8 {[%emt 0:00:50]} 65. Kh2 {[%emt 0:00:21]} Kf7 {[%emt 0:00:08]} 66. Kg2 {[%emt 0:00:08]} h3+ {[%emt 0:01:23]} 67. Kh2 {[%emt 0:00:03]} Kg7 {[%emt 0:00:15]} 68. Kh1 {[%emt 0:00:29]} Kh6 {[%emt 0:00:59]} 69. e6 {[%emt 0:00:41]} Kg7 {[%emt 0:00:09]} 70. e7 {[%emt 0:00:07]} Kf7 {[%emt 0:00:32]} 71. f6 {[%emt 0:00:08]} Ra8 {[%emt 0:00:18]} 72. Kh2 {[%emt 0:00:06]} Kxf6 {[%emt 0:01:05]} 73. e8=Q {[%emt 0:00:28]} Rxe8 1/2-1/2

[Event "22nd ETCC Women 2019"]
[Site "Batumi"]
[Date "2019.10.27"]
[Round "4.19"]
[White "Sikorova, Olga"]
[Black "Manova, Ivana"]
[Result "1-0"]
[ECO "A05"]
[WhiteElo "2234"]
[BlackElo "1795"]
[Annotator "NA"]
[PlyCount "111"]
[EventDate "2019.10.24"]
[EventType "team-tourn"]
[EventCountry "GEO"]
[SourceTitle "playchess.com"]
[Source "ChessBase"]
[SourceQuality "1"]
[WhiteTeam "Czech Republic"]
[BlackTeam "Macedonia"]
[WhiteTeamCountry "CZE"]
[BlackTeamCountry "MKD"]
[TimeControl "40/5400+30:1800+30"]

1. Nf3 {[%emt 0:00:00]} Nf6 {[%emt 0:00:00]} 2. c4 {[%emt 0:00:00]} e6 {[%emt 0:00:09]} 3. g3 {[%emt 0:00:16]} d5 {[%emt 0:00:23]} 4. b3 {[%emt 0:01:09]} Be7 {[%emt 0:01:36]} 5. Bg2 {[%emt 0:00:17]} a6 {[%emt 0:01:20]} 6. O-O {[%emt 0:03:15]} O-O {[%emt 0:00:35]} 7. Bb2 {[%emt 0:04:22]} b5 {[%emt 0:01:26]} 8. Ne5 {[%emt 0:10:33]} Bb7 {[%emt 0:08:49]} 9. Nc3 {[%emt 0:09:50]} b4 {[%emt 0:06:43]} 10. Na4 {[%emt 0:01:46]} Nbd7 {[%emt 0:09:23]} 11. Nxd7 {[%emt 0:03:38]} Nxd7 {[%emt 0:10:15]} 12. cxd5 {[%emt 0:02:00]} exd5 {[%emt 0:00:45]} 13. Rc1 {[%emt 0:00:53]} c5 {[%emt 0:02:46]} 14. d4 {[%emt 0:01:27]} Qa5 {[%emt 0:11:47]} 15. dxc5 {[%emt 0:06:27]} Nxc5 {[%emt 0:03:57]} 16. Nxc5 {[%emt 0:03:02]} Bxc5 {[%emt 0:00:37]} 17. Qd2 {[%emt 0:02:22]} Qb6 {[%emt 0:04:00]} 18. Bxd5 {[%emt 0:04:48]} Be7 {[%emt 0:08:39]} 19. Bxb7 {[%emt 0:04:08]} Qxb7 {[%emt 0:00:09]} 20. Qf4 {[%emt 0:00:51]} Rac8 {[%emt 0:04:12]} 21. Qg4 {[%emt 0:04:45]} f6 {[%emt 0:00:22]} 22. Qe6+ {[%emt 0:00:45]} Kh8 {[%emt 0:00:06]} 23. Rxc8 {[%emt 0:02:10]} Rxc8 {[%emt 0:00:05]} 24. Rd1 {[%emt 0:00:25]} h6 {[%emt 0:07:21]} 25. Rd7 {[%emt 0:11:19]} Rc7 {[%emt 0:00:07]} 26. Rxc7 {[%emt 0:01:00]} Qxc7 {[%emt 0:00:04]} 27. Bd4 {[%emt 0:01:59]} Bd6 {[%emt 0:02:37]} 28. Qe8+ {[%emt 0:03:30]} Kh7 {[%emt 0:00:06]} 29. Qe4+ {[%emt 0:00:21]} Kh8 {[%emt 0:00:33]} 30. Qa8+ {[%emt 0:00:25]} Kh7 {[%emt 0:00:42]} 31. Qxa6 {[%emt 0:00:27]} Be5 {[%emt 0:02:22]} 32. Qd3+ {[%emt 0:01:43]} Kh8 {[%emt 0:00:31]} 33. Be3 {[%emt 0:03:52]} Qa5 {[%emt 0:00:57]} 34. Qc2 {[%emt 0:01:15]} Bc3 {[%emt 0:01:30]} 35. Bc1 {[%emt 0:01:37]} Be5 {[%emt 0:04:00]} 36. Bd2 {[%emt 0:00:44]} Qa3 {[%emt 0:03:02]} 37. Qc8+ {[%emt 0:04:23]} Kh7 {[%emt 0:00:12]} 38. Qc5 {[%emt 0:00:30]} Bc3 {[%emt 0:00:56]} 39. Qf5+ {[%emt 0:00:51]} Kh8 {[%emt 0:00:11]} 40. Qc2 {[%emt 0:00:00]} Be5 {[%emt 0:00:00]} 41. Bc1 {[%emt 0:21:31]} Qa7 {[%emt 0:08:28]} 42. Be3 {[%emt 0:00:21]} Qa3 {[%emt 0:01:38]} 43. Bc5 {[%emt 0:00:51]} Qa5 {[%emt 0:01:04]} 44. Qc4 {[%emt 0:01:37]} Qxa2 {[%emt 0:05:10]} 45. Bxb4 {[%emt 0:00:09]} Qa1+ {[%emt 0:01:45]} 46. Kg2 {[%emt 0:00:04]} Qa8+ {[%emt 0:00:31]} 47. f3 {[%emt 0:00:49]} Qa1 {[%emt 0:01:22]} 48. Bc5 {[%emt 0:00:39]} Qa5 {[%emt 0:06:58]} 49. b4 {[%emt 0:02:08]} Qc7 {[%emt 0:00:07]} 50. Qd5 {[%emt 0:00:48]} Qb8 {[%emt 0:00:51]} 51. Qc6 {[%emt 0:04:39]} Qd8 {[%emt 0:01:10]} 52. b5 {[%emt 0:01:26]} f5 {[%emt 0:02:11]} 53. Qe6 {[%emt 0:01:31]} Qc7 {[%emt 0:01:16]} 54. Qe7 {[%emt 0:01:24]} Kg8 {[%emt 0:02:44]} 55. Qxc7 {[%emt 0:00:26]} Bxc7 {[%emt 0:00:02]} 56. Ba7 {[%emt 0:00:07]} 1-0

[Event "22nd ETCC Women 2019"]
[Site "Batumi"]
[Date "2019.10.27"]
[Round "4.20"]
[White "Lehaci, Miruna-Daria"]
[Black "Mamedjarova, Turkan"]
[Result "0-1"]
[ECO "D45"]
[WhiteElo "2131"]
[BlackElo "2314"]
[Annotator "NA"]
[PlyCount "106"]
[EventDate "2019.10.24"]
[EventType "team-tourn"]
[EventCountry "GEO"]
[SourceTitle "playchess.com"]
[Source "ChessBase"]
[SourceQuality "1"]
[WhiteTeam "Romania"]
[BlackTeam "Azerbaijan"]
[WhiteTeamCountry "ROU"]
[BlackTeamCountry "AZE"]
[TimeControl "40/5400+30:1800+30"]

1. d4 {[%emt 0:00:00]} d5 {[%emt 0:00:00]} 2. c4 {[%emt 0:00:00]} e6 {[%emt 0:00:00]} 3. Nf3 {[%emt 0:00:00]} Nf6 {[%emt 0:00:00]} 4. Nc3 {[%emt 0:00:00]} c6 {[%emt 0:00:04]} 5. e3 {[%emt 0:00:00]} Nbd7 {[%emt 0:00:26]} 6. Qc2 {[%emt 0:00:00]} Bd6 {[%emt 0:00:24]} 7. Bd3 {[%emt 0:00:00]} O-O {[%emt 0:00:44]} 8. O-O {[%emt 0:00:01]} dxc4 {[%emt 0:00:53]} 9. Bxc4 {[%emt 0:00:06]} b5 {[%emt 0:00:36]} 10. Be2 {[%emt 0:00:13]} Qc7 {[%emt 0:04:33]} 11. e4 {[%emt 0:05:43]} e5 {[%emt 0:00:58]} 12. dxe5 {[%emt 0:03:11]} Nxe5 {[%emt 0:00:16]} 13. Nd4 {[%emt 0:08:16]} Ng6 {[%emt 0:12:38]} 14. h3 {[%emt 0:07:51]} a6 {[%emt 0:09:36]} 15. Bg5 {[%emt 0:03:22]} Nd7 {[%emt 0:10:27]} 16. Nf5 {[%emt 0:04:59]} Be5 {[%emt 0:04:59]} 17. g3 {[%emt 0:11:32]} h6 {[%emt 0:07:31]} 18. Be3 {[%emt 0:00:32]} Nf6 {[%emt 0:03:10]} 19. f4 {[%emt 0:11:27]} Bxc3 {[%emt 0:00:31]} 20. bxc3 {[%emt 0:00:12]} Re8 {[%emt 0:03:58]} 21. Bd4 Nxe4 {[%emt 0:08:25]} 22. Nxg7 {[%emt 0:09:22]} Re7 {[%emt 0:00:05]} 23. Bd3 {[%emt 0:12:38]} Nxg3 {[%emt 0:05:26]} 24. Qg2 {[%emt 0:00:47]} Nxf1 {[%emt 0:04:19]} 25. Rxf1 {[%emt 0:01:20]} c5 {[%emt 0:04:14]} 26. Qxa8 {[%emt 0:05:41]} cxd4 {[%emt 0:00:17]} 27. Nf5 {[%emt 0:00:30]} Re8 {[%emt 0:00:42]} 28. cxd4 {[%emt 0:04:41]} Rd8 {[%emt 0:03:51]} 29. Qg2 {[%emt 0:03:04]} Bxf5 {[%emt 0:00:31]} 30. Bxf5 {[%emt 0:00:05]} Rxd4 {[%emt 0:01:03]} 31. Bxg6 {[%emt 0:02:56]} fxg6 {[%emt 0:00:02]} 32. f5 {[%emt 0:00:08]} Rd6 {[%emt 0:05:00]} 33. fxg6 {[%emt 0:02:33]} Qc5+ {[%emt 0:02:06]} 34. Kh2 {[%emt 0:02:09]} Qe5+ {[%emt 0:02:03]} 35. Kh1 {[%emt 0:01:02]} Qd5 {[%emt 0:01:23]} 36. Qxd5+ {[%emt 0:02:29]} Rxd5 {[%emt 0:00:02]} 37. Rc1 {[%emt 0:00:19]} Rd6 {[%emt 0:00:42]} 38. a4 {[%emt 0:00:53]} b4 {[%emt 0:02:08]} 39. Rc8+ {[%emt 0:00:38]} Kg7 {[%emt 0:00:04]} 40. Rb8 {[%emt 0:00:00]} a5 {[%emt 0:00:00]} 41. Rb5 {[%emt 0:03:44]} Rd2 {[%emt 0:01:55]} 42. Rb6 {[%emt 0:07:08]} Ra2 {[%emt 0:00:57]} 43. h4 {[%emt 0:00:09]} h5 {[%emt 0:00:23]} 44. Kg1 {[%emt 0:00:37]} Rxa4 {[%emt 0:00:24]} 45. Kf2 {[%emt 0:00:04]} Ra3 {[%emt 0:00:09]} 46. Kg2 {[%emt 0:00:31]} b3 {[%emt 0:01:00]} 47. Kf3 {[%emt 0:00:19]} b2+ {[%emt 0:02:17]} 48. Kg2 {[%emt 0:04:39]} Ra2 {[%emt 0:01:01]} 49. Kf3 {[%emt 0:00:04]} Kh6 {[%emt 0:01:46]} 50. Ke3 {[%emt 0:03:07]} a4 {[%emt 0:00:44]} 51. Ke4 {[%emt 0:01:08]} a3 {[%emt 0:00:19]} 52. Kf5 {[%emt 0:00:07]} Ra1 {[%emt 0:00:30]} 53. Kf6 {[%emt 0:00:04]} Rf1+ {[%emt 0:00:15]} 0-1

[Event "22nd ETCC Women 2019"]
[Site "Batumi"]
[Date "2019.10.27"]
[Round "4.20"]
[White "Koskoska, Gabriela"]
[Black "Miturova, Magdalena"]
[Result "1/2-1/2"]
[ECO "A28"]
[WhiteElo "2036"]
[BlackElo "2179"]
[Annotator "NA"]
[PlyCount "127"]
[EventDate "2019.10.24"]
[EventType "team-tourn"]
[EventCountry "GEO"]
[SourceTitle "playchess.com"]
[Source "ChessBase"]
[SourceQuality "1"]
[WhiteTeam "Macedonia"]
[BlackTeam "Czech Republic"]
[WhiteTeamCountry "MKD"]
[BlackTeamCountry "CZE"]
[TimeControl "40/5400+30:1800+30"]

1. c4 {[%emt 0:00:00]} e5 {[%emt 0:00:00]} 2. Nc3 {[%emt 0:00:22]} Nf6 {[%emt 0:00:00]} 3. Nf3 {[%emt 0:00:21]} Nc6 {[%emt 0:03:09]} 4. a3 {[%emt 0:01:28]} d5 {[%emt 0:05:54]} 5. cxd5 {[%emt 0:00:42]} Nxd5 {[%emt 0:00:08]} 6. Qc2 {[%emt 0:01:10]} Nde7 {[%emt 0:13:21]} 7. e3 {[%emt 0:05:09]} g6 {[%emt 0:00:25]} 8. b4 {[%emt 0:09:03]} a6 {[%emt 0:02:44]} 9. Bc4 {[%emt 0:07:35]} Nf5 {[%emt 0:07:13]} 10. Bb2 {[%emt 0:09:32]} Bg7 {[%emt 0:02:33]} 11. O-O {[%emt 0:01:17]} O-O {[%emt 0:00:38]} 12. Rad1 {[%emt 0:12:15]} Nd6 {[%emt 0:03:17]} 13. Be2 {[%emt 0:04:09]} Be6 {[%emt 0:04:58]} 14. Na4 {[%emt 0:03:08]} Bf5 {[%emt 0:08:28]} 15. d3 {[%emt 0:01:04]} Qe7 {[%emt 0:02:07]} 16. Nc5 {[%emt 0:01:46]} Nd8 {[%emt 0:03:51]} 17. h3 {[%emt 0:05:31]} a5 {[%emt 0:06:58]} 18. Nd2 {[%emt 0:09:08]} axb4 {[%emt 0:02:38]} 19. axb4 {[%emt 0:00:08]} b6 {[%emt 0:00:57]} 20. Nce4 {[%emt 0:04:04]} Nxe4 {[%emt 0:02:31]} 21. dxe4 {[%emt 0:00:48]} Be6 {[%emt 0:01:06]} 22. Ra1 {[%emt 0:02:05]} Rxa1 {[%emt 0:00:31]} 23. Rxa1 {[%emt 0:00:18]} f5 {[%emt 0:08:13]} 24. Ra7 {[%emt 0:03:28]} Rf7 {[%emt 0:00:27]} 25. Ra8 {[%emt 0:02:43]} Bf6 {[%emt 0:05:05]} 26. b5 {[%emt 0:02:01]} Kg7 {[%emt 0:01:57]} 27. exf5 {[%emt 0:02:26]} Bxf5 {[%emt 0:00:18]} 28. e4 {[%emt 0:01:41]} Be6 {[%emt 0:07:38]} 29. Nf3 {[%emt 0:01:51]} Qd6 {[%emt 0:01:33]} 30. Ba3 {[%emt 0:04:41]} Qd7 {[%emt 0:00:28]} 31. Bb2 {[%emt 0:00:20]} Qd6 {[%emt 0:01:24]} 32. Ba3 {[%emt 0:00:36]} c5 {[%emt 0:02:27]} 33. bxc6 {[%emt 0:00:38]} Qxc6 {[%emt 0:00:02]} 34. Qxc6 {[%emt 0:02:28]} Nxc6 {[%emt 0:00:02]} 35. Ra6 {[%emt 0:01:08]} Rb7 {[%emt 0:00:19]} 36. Bb2 {[%emt 0:00:23]} Kf7 {[%emt 0:02:59]} 37. Bb5 {[%emt 0:00:50]} Na7 {[%emt 0:01:03]} 38. Be2 {[%emt 0:00:46]} Nc6 {[%emt 0:00:13]} 39. g4 {[%emt 0:00:54]} Nd4 {[%emt 0:01:07]} 40. Bxd4 {[%emt 0:00:00]} exd4 {[%emt 0:00:00]} 41. e5 {[%emt 0:01:24]} Be7 {[%emt 0:06:14]} 42. Nxd4 {[%emt 0:01:48]} Bc5 {[%emt 0:00:51]} 43. Nf3 {[%emt 0:09:44]} h6 {[%emt 0:04:15]} 44. Nd2 {[%emt 0:03:46]} Bd5 {[%emt 0:03:24]} 45. Bd3 {[%emt 0:05:42]} Bd4 {[%emt 0:09:39]} 46. Kf1 {[%emt 0:06:48]} Bxe5 {[%emt 0:04:01]} 47. Nc4 {[%emt 0:00:08]} Bc7 {[%emt 0:01:06]} 48. Ke2 {[%emt 0:00:12]} Kf6 {[%emt 0:01:21]} 49. Ne3 {[%emt 0:00:40]} Bc6 {[%emt 0:01:11]} 50. h4 {[%emt 0:01:19]} Be5 {[%emt 0:00:52]} 51. Nc4 {[%emt 0:02:38]} Bd4 {[%emt 0:00:11]} 52. Ne3 {[%emt 0:01:06]} Bc5 {[%emt 0:00:44]} 53. Ra8 {[%emt 0:00:34]} Kg7 {[%emt 0:02:32]} 54. Rc8 {[%emt 0:00:42]} Bd7 {[%emt 0:00:14]} 55. Rd8 {[%emt 0:00:43]} Bxe3 {[%emt 0:01:16]} 56. Kxe3 {[%emt 0:00:09]} Bxg4 {[%emt 0:00:09]} 57. Rd6 {[%emt 0:00:55]} Bh5 {[%emt 0:00:52]} 58. Be4 {[%emt 0:01:16]} Rb8 {[%emt 0:00:37]} 59. Rd7+ {[%emt 0:00:24]} Kf6 {[%emt 0:00:05]} 60. Kd4 {[%emt 0:00:49]} Ke6 {[%emt 0:00:46]} 61. Rh7 {[%emt 0:01:02]} Rd8+ {[%emt 0:00:45]} 62. Ke3 {[%emt 0:00:08]} Kf6 {[%emt 0:00:25]} 63. Rb7 {[%emt 0:00:41]} Rd6 {[%emt 0:00:04]} 64. f3 {[%emt 0:00:07]} 1/2-1/2

[Event "22nd ETCC Women 2019"]
[Site "Batumi"]
[Date "2019.10.27"]
[Round "4.21"]
[White "Unuk, Laura"]
[Black "Eric, Jovana"]
[Result "1-0"]
[ECO "A04"]
[WhiteElo "2278"]
[BlackElo "2285"]
[Annotator "NA"]
[PlyCount "79"]
[EventDate "2019.10.24"]
[EventType "team-tourn"]
[EventCountry "GEO"]
[SourceTitle "playchess.com"]
[Source "ChessBase"]
[SourceQuality "1"]
[WhiteTeam "Slovenia"]
[BlackTeam "Serbia"]
[WhiteTeamCountry "SLO"]
[BlackTeamCountry "SRB"]
[TimeControl "40/5400+30:1800+30"]

1. Nf3 {[%emt 0:00:00]} e6 {[%emt 0:00:00]} 2. g3 {[%emt 0:00:08]} f5 {[%emt 0:00:12]} 3. Bg2 {[%emt 0:00:43]} Nf6 {[%emt 0:00:22]} 4. O-O {[%emt 0:04:06]} d5 {[%emt 0:01:27]} 5. c4 {[%emt 0:06:16]} Be7 {[%emt 0:05:22]} 6. b3 {[%emt 0:00:37]} O-O {[%emt 0:02:01]} 7. Bb2 {[%emt 0:03:09]} c6 {[%emt 0:04:50]} 8. d3 {[%emt 0:02:13]} a5 {[%emt 0:02:01]} 9. Nbd2 {[%emt 0:08:45]} c5 {[%emt 0:06:57]} 10. e3 {[%emt 0:08:57]} Nc6 {[%emt 0:05:32]} 11. d4 {[%emt 0:10:00]} cxd4 {[%emt 0:13:38]} 12. Nxd4 {[%emt 0:01:51]} Nb4 {[%emt 0:01:48]} 13. cxd5 {[%emt 0:09:08]} Nbxd5 {[%emt 0:04:25]} 14. Nc4 {[%emt 0:03:08]} Qe8 {[%emt 0:12:22]} 15. Nxf5 {[%emt 0:09:19]} Bb4 {[%emt 0:00:15]} 16. Nfd6 {[%emt 0:04:49]} Qe7 {[%emt 0:00:23]} 17. e4 {[%emt 0:09:01]} Nc3 {[%emt 0:07:08]} 18. Qd3 {[%emt 0:03:43]} b5 {[%emt 0:09:18]} 19. Nb6 {[%emt 0:08:07]} Qxd6 {[%emt 0:00:44]} 20. Qxd6 {[%emt 0:00:03]} Ne2+ {[%emt 0:00:05]} 21. Kh1 {[%emt 0:00:02]} Bxd6 {[%emt 0:00:06]} 22. Nxa8 {[%emt 0:01:08]} Ng4 {[%emt 0:05:15]} 23. e5 {[%emt 0:00:25]} Bc5 {[%emt 0:02:09]} 24. h3 {[%emt 0:00:04]} Nxf2+ {[%emt 0:03:06]} 25. Kh2 {[%emt 0:00:03]} Rd8 {[%emt 0:02:37]} 26. Bc1 {[%emt 0:04:30]} Bd4 {[%emt 0:01:11]} 27. Bg5 {[%emt 0:00:13]} Rf8 {[%emt 0:04:00]} 28. Rae1 {[%emt 0:00:23]} Nc3 {[%emt 0:01:07]} 29. Be3 {[%emt 0:00:25]} Bxe3 {[%emt 0:01:21]} 30. Rxe3 {[%emt 0:00:04]} b4 {[%emt 0:03:20]} 31. Kg1 {[%emt 0:00:28]} Nfd1 {[%emt 0:00:42]} 32. Rxf8+ {[%emt 0:00:22]} Kxf8 {[%emt 0:00:03]} 33. Rd3 Ba6 {[%emt 0:01:44]} 34. Rd6 {[%emt 0:01:04]} Bb5 {[%emt 0:00:32]} 35. Nc7 {[%emt 0:00:20]} Be2 {[%emt 0:00:41]} 36. Nxe6+ {[%emt 0:00:42]} Ke7 {[%emt 0:00:04]} 37. Nxg7 {[%emt 0:01:16]} Nxa2 {[%emt 0:00:21]} 38. Nf5+ {[%emt 0:00:28]} Kf8 {[%emt 0:00:10]} 39. e6 {[%emt 0:00:13]} Nac3 {[%emt 0:00:47]} 40. Rd8# {[%emt 0:00:00]} 1-0

[Event "22nd ETCC Women 2019"]
[Site "Batumi"]
[Date "2019.10.27"]
[Round "4.21"]
[White "Goossens, Hanne"]
[Black "Cramling, Pia"]
[Result "0-1"]
[ECO "B41"]
[WhiteElo "2156"]
[BlackElo "2462"]
[Annotator "ChessBase"]
[PlyCount "70"]
[EventDate "2019.10.24"]
[EventType "team-tourn"]
[EventCountry "GEO"]
[SourceTitle "playchess.com"]
[Source "ChessBase"]
[SourceQuality "1"]
[WhiteTeam "Belgium"]
[BlackTeam "Sweden"]
[WhiteTeamCountry "BEL"]
[BlackTeamCountry "SWE"]
[TimeControl "40/5400+30:1800+30"]

1. e4 {[%emt 0:00:00]} c5 {[%emt 0:00:00]} 2. Nf3 {[%emt 0:00:00]} e6 {[%emt 0:00:00]} 3. d4 {[%emt 0:00:00]} cxd4 {[%emt 0:00:00]} 4. Nxd4 {[%emt 0:00:00]} a6 {[%emt 0:00:00]} 5. c4 {[%emt 0:00:51]} Nf6 {[%emt 0:00:13]} 6. Nc3 {[%emt 0:00:07]} Bb4 {[%emt 0:00:46]} 7. Qd3 {[%emt 0:00:56]} d6 {[%emt 0:00:14]} 8. Bd2 {[%emt 0:09:40]} Nbd7 {[%emt 0:11:59]} 9. f3 {[%emt 0:06:54]} O-O {[%emt 0:02:44]} 10. a3 {[%emt 0:03:51]} Ne5 {[%emt 0:06:55]} 11. Qc2 {[%emt 0:01:31]} Bc5 {[%emt 0:00:21]} 12. Be3 {[%emt 0:01:00]} Bd7 {[%emt 0:01:47]} 13. b4 {[%emt 0:09:50]} Ba7 {[%emt 0:00:30]} 14. Qb3 {[%emt 0:06:18]} Qc7 {[%emt 0:06:56]} 15. Rc1 {[%emt 0:02:38]} Rfc8 {[%emt 0:00:38]} 16. Na2 {[%emt 0:02:18]} Qd8 {[%emt 0:09:42]} 17. Be2 {[%emt 0:01:25]} Qe8 {[%emt 0:05:38]} 18. O-O {[%emt 0:12:21]} Ba4 {[%emt 0:02:22]} 19. Qb2 {[%emt 0:01:21]} d5 {[%emt 0:01:04]} 20. cxd5 {[%emt 0:24:36]} exd5 {[%emt 0:00:56]} 21. Nc3 {[%emt 0:00:24]} dxe4 {[%emt 0:18:31]} 22. Nxe4 {[%emt 0:03:16]} Nxe4 {[%emt 0:00:29]} 23. fxe4 {[%emt 0:01:05]} Bc6 {[%emt 0:03:05]} 24. Qb1 {[%emt 0:01:50]} Rd8 {[%emt 0:01:29]} 25. Rcd1 {[%emt 0:01:12]} Ba4 {[%emt 0:02:13]} 26. Rd2 {[%emt 0:06:54]} Rd6 {[%emt 0:00:53]} 27. Kh1 {[%emt 0:02:05]} Rad8 {[%emt 0:02:33]} 28. Qb2 {[%emt 0:00:47]} f6 {[%emt 0:10:24]} 29. Nf5 {[%emt 0:00:39]} Rxd2 {[%emt 0:00:17]} 30. Bxd2 {[%emt 0:00:02]} Bc6 {[%emt 0:00:29]} 31. Ng3 {[%emt 0:00:22]} Bb5 {[%emt 0:01:50]} 32. Bc3 {[%emt 0:01:02]} Nd3 {[%emt 0:02:26]} 33. Bxd3 {[%emt 0:00:29]} Rxd3 {[%emt 0:00:27]} 34. Ne2 {[%emt 0:00:45]} Re3 {[%emt 0:02:42]} 35. Rf2 {[%emt 0:00:26]} Rxe4 {[%emt 0:01:30]} 0-1